lending/lending_fUSD_20251218
["ID","MTS","AMOUNT","RATE_DAILY","PERIOD"]
[399065097,1766095848577,-2427.0,0.00024895,2]
[399065098,1766095848587,-391.452,0.00024895,2]
[399065099,1766095848597,-1741.055,0.00024895,2]
[399065100,1766095848606,-151.0,0.000249,7]
[399065101,1766095848616,-151.0,0.000249,7]
[399065102,1766095848627,-151.0,0.000249,7]
[399065103,1766095848637,-151.0,0.000249,7]
[399065104,1766095848647,-623.603896,0.000249,7]
[399065105,1766095848657,-623.603896,0.000249,7]
[399065106,1766095848666,-623.603896,0.000249,7]
[399065107,1766095848676,-623.603896,0.000249,7]
[399065108,1766095848686,-151.0,0.000249,7]
[399065109,1766095848695,-151.0,0.000249,7]
[399065110,1766095848705,-345.513338,0.000249,7]
[399065111,1766095848714,-151.0,0.000249,7]
[399065112,1766095848725,-345.513338,0.000249,7]
[399065113,1766095848735,-345.513338,0.000249,7]
[399065114,1766095848744,-345.513338,0.000249,7]
[399065115,1766095848753,-151.0,0.000249,7]
[399065116,1766095848762,-151.0,0.000249,7]
[399065117,1766095848771,-223.043096,0.000249,7]
[399065118,1766095848781,-223.043096,0.000249,7]
[399065119,1766095848791,-223.043096,0.000249,7]
[399065120,1766095848800,-223.043096,0.000249,7]
[399065121,1766095848809,-1307.408472,0.000249,7]
[399065122,1766095848819,-1307.408472,0.000249,7]
[399065123,1766095848829,-1307.408472,0.000249,7]
[399065124,1766095848838,-1307.408472,0.000249,7]
[399065125,1766095848847,-151.0,0.000249,7]
[399065126,1766095848856,-151.0,0.000249,7]
[399065127,1766095848866,-151.0,0.000249,7]
[399065128,1766095848875,-151.0,0.000249,7]
[399065129,1766095848885,-150.0,0.00025225,2]
[399065130,1766095848894,-151.10279998,0.00025652,2]
[399065131,1766095848904,-382.75862216,0.000257,2]
[399065132,1766095848917,-7970.84662077,0.00026369,2]
[399065133,1766095848926,-239.31,0.00026676,2]
[399065134,1766095848936,-2000.0,0.00027,2]
[399065135,1766095848945,-2417.212493,0.0002701,2]
[399065136,1766095848958,-151.10279998,0.00027255,2]
[399065137,1766095848967,-150.0,0.00027369,2]
[399065138,1766095848977,-231.28369723,0.00027391,2]
[399065139,1766095848986,-221.46198175,0.00027397,7]
[399065140,1766095848995,-151.0,0.00027397,7]
[399065141,1766095849004,-151.0,0.00027397,7]
[399065142,1766095849013,-151.0,0.00027397,7]
[399065143,1766095849023,-500.0,0.00027397,14]
[399065144,1766095849033,-263.007995,0.00027397,7]
[399065145,1766095849042,-263.007995,0.00027397,7]
[399065146,1766095849052,-263.007995,0.00027397,7]
[399065147,1766095849061,-263.007995,0.00027397,7]
[399065148,1766095849071,-263.007995,0.00027397,7]
[399065149,1766095849081,-263.007995,0.00027397,7]
[399065150,1766095849090,-263.007995,0.00027397,7]
[399065151,1766095849099,-263.007995,0.00027397,7]
[399065152,1766095849109,-263.007995,0.00027397,7]
[399065153,1766095849118,-263.007995,0.00027397,7]
[399065154,1766095849128,-263.007995,0.00027397,7]
[399065155,1766095849139,-263.007995,0.00027397,7]
[399065156,1766095849149,-151.0,0.00027397,7]
[399065157,1766095849159,-151.0,0.00027397,7]
[399065158,1766095849171,-151.0,0.00027397,7]
[399065159,1766095849181,-152.936494,0.00027397,7]
[399065160,1766095849191,-151.0,0.00027397,7]
[399065161,1766095849201,-176.423173,0.00027397,7]
[399065162,1766095849211,-1884.23,0.000277,7]
[399065163,1766095849222,-608.994,0.00027895,2]
[399065164,1766095849232,-1607.0,0.00027895,2]
[399065165,1766095849242,-1261.0,0.00027895,2]
[399065166,1766095849254,-564.0,0.00027895,2]
[399065167,1766095849263,-1197.0,0.00027895,2]
[399065168,1766095849272,-911.0,0.00027895,2]
[399065169,1766095849282,-2427.0,0.00027895,2]
[399065170,1766095849292,-2000.0,0.000281,2]
[399065171,1766095849301,-151.10279998,0.00028858,2]
[399065172,1766095849310,-7970.84662077,0.00028875,2]
[399065173,1766095849320,-335.70294942,0.00028948,2]
[399065174,1766095849331,-10779.55448036,0.000295,7]
[399065175,1766095849341,-230.65875738,0.00029722,30]
[399065176,1766095849351,-4686.00587184,0.0003,2]
[399065177,1766095849360,-710.73018601,0.0003,21]
[399065178,1766095849370,-258.0,0.0003,14]
[399065179,1766095849379,-382.75862216,0.000301,2]
[399065180,1766095849388,-315.97987037,0.0003013,2]
[399065181,1766095849398,-356.77,0.00030137,30]
[399065182,1766095849407,-702.8,0.00030137,25]
[399065183,1766095849416,-345.52,0.00030137,25]
[399065184,1766095849426,-505.536,0.00030137,25]
[399065185,1766095849436,-254.72,0.00030137,27]
[399065186,1766095849445,-191.04,0.00030137,27]
[399065187,1766095849455,-150.0,0.000303,14]
[399065188,1766095849464,-258.0,0.00030411,14]
[399065189,1766095849473,-151.10279998,0.00030462,2]
[399065190,1766095849483,-200.500034,0.000307,3]
[399065191,1766095849492,-1261.0,0.00030895,2]
[399065192,1766095849501,-564.0,0.00030895,2]
[399065193,1766095849511,-1197.0,0.00030895,2]
[399065194,1766095849519,-911.0,0.00030895,2]
[399065195,1766095849529,-2427.0,0.00030895,2]
[399065196,1766095849538,-7970.84662077,0.00031381,2]
[399065197,1766095849547,-165.85,0.00031507,120]
[399065198,1766095849556,-258.0,0.00031644,14]
[399065199,1766095849565,-1500.0,0.000318,2]
[399065200,1766095849574,-1884.23,0.00032,7]
[399065201,1766095849583,-151.10279998,0.00032065,2]
[399065202,1766095849592,-200.0,0.000327,7]
[399065203,1766095849601,-208.0,0.0003286,30]
[399065204,1766095849610,-151.0,0.00032877,31]
[399065205,1766095849619,-151.0,0.00032877,31]
[399065206,1766095849628,-151.0,0.00032877,31]
[399065207,1766095849637,-163.939973,0.00032877,31]
[399065208,1766095849646,-151.0,0.00032877,31]
[399065209,1766095849655,-151.0,0.00032877,31]
[399065210,1766095849664,-151.0,0.00032877,31]
[399065211,1766095849674,-151.0,0.00032877,31]
[399065212,1766095849684,-151.0,0.00032877,31]
[399065213,1766095849695,-151.0,0.00032877,31]
[399065214,1766095849705,-500.0,0.00032877,2]
[399065215,1766095849715,-500.0,0.00032877,2]
[399065216,1766095849724,-500.0,0.00032877,7]
[399065217,1766095849733,-500.0,0.00032877,7]
[399065218,1766095849742,-262.52083062,0.00032877,7]
[399065219,1766095849751,-219.47,0.00033,2]
[399065220,1766095849760,-552.151561,0.00033,14]
[399065221,1766095849769,-239.31,0.00033165,2]
[399065222,1766095849778,-265.0,0.00033226,30]
[399065223,1766095849786,-151.10280003,0.00033668,2]
[399065224,1766095849795,-903.6,0.00033699,2]
[399065225,1766095849804,-1218.15,0.00033699,2]
[399065226,1766095849814,-7970.84662077,0.00033888,2]
[399065227,1766095849822,-202.234,0.00033895,2]
[399065228,1766095849832,-564.0,0.00033895,2]
[399065229,1766095849841,-1197.0,0.00033895,2]
[399065230,1766095849851,-911.0,0.00033895,2]
[399065231,1766095849862,-2427.0,0.00033895,2]
[399065232,1766095849871,-311.33,0.000339,30]
[399065233,1766095849880,-219.47,0.000342,2]
[399065234,1766095849890,-199.0,0.00034246,30]
[399065235,1766095849899,-382.75862216,0.000345,2]
[399065236,1766095849909,-200.0,0.000347,10]
[399065237,1766095849920,-42771.0,0.0003486,120]
[399065238,1766095849930,-208.0,0.0003488,30]
[399065239,1766095849940,-199.0,0.00034931,31]
[399065240,1766095849949,-480.97,0.00034932,2]
[399065241,1766095849959,-480.97,0.00034932,2]
[399065242,1766095849968,-237.3,0.00035,2]
[399065243,1766095849978,-219.47,0.000353,2]
[399065244,1766095849987,-150.0,0.00035342,2]
[399065245,1766095849996,-150.0,0.00035342,2]
[399065246,1766095850006,-258.0,0.00035441,30]
[399065247,1766095850015,-1500.0,0.000355,2]
[399065248,1766095850025,-151.0,0.00035613,14]
[399065249,1766095850034,-527.1,0.00035616,69]
[399065250,1766095850044,-259.14,0.00035616,118]
[399065251,1766095850053,-379.152,0.00035616,37]
[399065252,1766095850063,-191.04,0.00035616,35]
[399065253,1766095850072,-500.0,0.00035616,7]
[399065254,1766095850081,-500.0,0.00035616,7]
[399065255,1766095850091,-500.0,0.00035616,7]
[399065256,1766095850100,-500.0,0.00035616,7]
[399065257,1766095850109,-500.0,0.00035616,7]
[399065258,1766095850118,-500.0,0.00035616,7]
[399065259,1766095850127,-286.56,0.00035616,86]
[399065260,1766095850136,-263.103994,0.00035616,31]
[399065261,1766095850146,-151.0,0.00035616,31]
[399065262,1766095850156,-151.0,0.00035616,31]
[399065263,1766095850165,-151.0,0.00035616,31]
[399065264,1766095850175,-151.0,0.00035616,31]
[399065265,1766095850184,-199.0,0.00035616,32]
[399065266,1766095850193,-356.77,0.00035616,30]
[399065267,1766095850203,-160.002008,0.00035616,31]
[399065268,1766095850212,-202.698541,0.00035616,31]
[399065269,1766095850221,-151.0,0.00035616,31]
[399065270,1766095850230,-151.0,0.00035616,31]
[399065271,1766095850239,-156.140918,0.00035616,31]
[399065272,1766095850249,-151.0,0.00035616,31]
[399065273,1766095850258,-151.0,0.00035616,31]
[399065274,1766095850267,-151.0,0.00035616,31]
[399065275,1766095850276,-151.0,0.00035616,31]
[399065276,1766095850286,-235.90454163,0.00035616,31]
[399065277,1766095850296,-151.0,0.00035616,31]
[399065278,1766095850305,-151.0,0.00035616,31]
[399065279,1766095850314,-151.0,0.00035616,31]
[399065280,1766095850324,-151.0,0.00035616,31]
[399065281,1766095850333,-151.0,0.00035616,31]
[399065282,1766095850342,-151.0,0.00035616,31]
[399065283,1766095850351,-151.0,0.00035616,30]
[399065284,1766095850361,-151.0,0.00035616,30]
[399065285,1766095850370,-151.0,0.00035616,30]
[399065286,1766095850379,-151.0,0.00035616,31]
[399065287,1766095850388,-151.0,0.00035616,31]
[399065288,1766095850399,-151.0,0.00035616,31]
[399065289,1766095850408,-158.062364,0.00035616,31]
[399065290,1766095850417,-155.787474,0.00035616,10]
[399065291,1766095850426,-151.356015,0.00035616,31]
[399065292,1766095850436,-234.609346,0.00035616,31]
[399065293,1766095850445,-151.0,0.00035616,31]
[399065294,1766095850454,-151.0,0.00035616,31]
[399065295,1766095850463,-151.0,0.00035616,31]
[399065296,1766095850472,-151.0,0.00035616,31]
[399065297,1766095850482,-151.0,0.00035616,31]
[399065298,1766095850491,-151.0,0.00035616,31]
[399065299,1766095850501,-151.0,0.00035616,31]
[399065300,1766095850509,-151.0,0.00035616,31]
[399065301,1766095850519,-151.0,0.00035616,31]
[399065302,1766095850527,-151.0,0.00035616,31]
[399065303,1766095850536,-151.0,0.00035616,31]
[399065304,1766095850545,-151.0,0.00035616,31]
[399065305,1766095850554,-300.0,0.00035616,31]
[399065306,1766095850563,-300.0,0.00035616,31]
[399065307,1766095850572,-300.0,0.00035616,31]
[399065308,1766095850581,-300.0,0.00035616,31]
[399065309,1766095850591,-300.0,0.00035616,31]
[399065310,1766095850600,-300.0,0.00035616,31]
[399065311,1766095850610,-300.0,0.00035616,31]
[399065312,1766095850619,-300.0,0.00035616,31]
[399065313,1766095850630,-300.0,0.00035616,31]
[399065314,1766095850640,-300.0,0.00035616,31]
[399065315,1766095850650,-300.0,0.00035616,31]
[399065316,1766095850660,-300.0,0.00035616,31]
[399065317,1766095850670,-276.882747,0.00035616,31]
[399065318,1766095850680,-276.882747,0.00035616,31]
[399065319,1766095850690,-276.882747,0.00035616,31]
[399065320,1766095850700,-276.882747,0.00035616,31]
[399065321,1766095850710,-276.882747,0.00035616,31]
[399065322,1766095850719,-276.882747,0.00035616,31]
[399065323,1766095850729,-276.882747,0.00035616,31]
[399065324,1766095850737,-276.882747,0.00035616,31]
[399065325,1766095850747,-276.882747,0.00035616,31]
[399065326,1766095850757,-276.882747,0.00035616,31]
[399065327,1766095850766,-276.882747,0.00035616,31]
[399065328,1766095850777,-276.882747,0.00035616,31]
[399065329,1766095850787,-151.0,0.00035616,31]
[399065330,1766095850796,-151.0,0.00035616,31]
[399065331,1766095850807,-151.0,0.00035616,31]
[399065332,1766095850817,-151.0,0.00035616,31]
[399065333,1766095850827,-151.0,0.00035616,31]
[399065334,1766095850836,-151.0,0.00035616,31]
[399065335,1766095850846,-151.0,0.00035616,31]
[399065336,1766095850857,-574.799765,0.00035616,31]
[399065337,1766095850866,-151.0,0.00035616,31]
[399065338,1766095850875,-574.799765,0.00035616,31]
[399065339,1766095850885,-574.799765,0.00035616,31]
[399065340,1766095850894,-574.799765,0.00035616,31]
[399065341,1766095850904,-574.799765,0.00035616,31]
[399065342,1766095850917,-574.799765,0.00035616,31]
[399065343,1766095850926,-188.332524,0.00035616,31]
[399065344,1766095850937,-574.799765,0.00035616,31]
[399065345,1766095850946,-188.332524,0.00035616,31]
[399065346,1766095850956,-574.799765,0.00035616,31]
[399065347,1766095850966,-188.332524,0.00035616,31]
[399065348,1766095850976,-574.799765,0.00035616,31]
[399065349,1766095850987,-188.332524,0.00035616,31]
[399065350,1766095850996,-574.799765,0.00035616,31]
[399065351,1766095851009,-188.332524,0.00035616,31]
[399065352,1766095851019,-574.799765,0.00035616,31]
[399065353,1766095851028,-188.332524,0.00035616,31]
[399065354,1766095851038,-574.799765,0.00035616,31]
[399065355,1766095851047,-188.332524,0.00035616,31]
[399065356,1766095851057,-188.332524,0.00035616,31]
[399065357,1766095851066,-188.332524,0.00035616,31]
[399065358,1766095851076,-188.332524,0.00035616,31]
[399065359,1766095851085,-188.332524,0.00035616,31]
[399065360,1766095851095,-188.332524,0.00035616,31]
[399065361,1766095851104,-158.710241,0.00035616,31]
[399065362,1766095851114,-151.0,0.00035616,31]
[399065363,1766095851123,-151.0,0.00035616,31]
[399065364,1766095851133,-151.000015,0.00035616,31]
[399065365,1766095851143,-151.0,0.00035616,31]
[399065366,1766095851152,-151.0,0.00035616,31]
[399065367,1766095851163,-118.78985332,0.00035616,31]
[399065368,1766095852218,-32.21014668,0.00035616,31]
[399065369,1766095852229,-151.0,0.00035616,31]
[399065370,1766095852239,-151.0,0.00035616,31]
[399065371,1766095852249,-151.0,0.00035616,31]
[399065372,1766095852259,-151.0,0.00035616,31]
[399065373,1766095852269,-153.9257,0.00035616,31]
[399065374,1766095852279,-151.0,0.00035616,31]
[399065375,1766095852290,-151.0,0.00035616,31]
[399065376,1766095852299,-151.0,0.00035616,31]
[399065377,1766095852309,-151.0,0.00035616,31]
[399065378,1766095852319,-151.0,0.00035616,31]
[399065379,1766095852329,-151.0,0.00035616,31]
[399065380,1766095852339,-151.0,0.00035616,30]
[399065381,1766095852349,-151.0,0.00035616,30]
[399065382,1766095852359,-151.0,0.00035616,30]
[399065383,1766095852370,-151.0,0.00035616,31]
[399065384,1766095852379,-159.404325,0.00035616,31]
[399065385,1766095852392,-151.0,0.00035616,31]
[399065386,1766095852402,-151.0,0.00035616,31]
[399065387,1766095852412,-151.0,0.00035616,31]
[399065388,1766095852422,-151.0,0.00035616,31]
[399065389,1766095852432,-151.0,0.00035616,31]
[399065390,1766095852441,-151.0,0.00035616,31]
[399065391,1766095852451,-151.0,0.00035616,31]
[399065392,1766095852461,-151.0,0.00035616,31]
[399065393,1766095852470,-254.437114,0.00035616,31]
[399065394,1766095852480,-151.0,0.00035616,31]
[399065395,1766095852490,-151.0,0.00035616,31]
[399065396,1766095852500,-275.152244,0.00035616,31]
[399065397,1766095852509,-157.023547,0.00035616,31]
[399065398,1766095852518,-151.0,0.00035616,31]
[399065399,1766095852528,-151.0,0.00035616,31]
[399065400,1766095852538,-151.0,0.00035616,31]
[399065401,1766095852547,-328.50371,0.00035616,31]
[399065402,1766095852557,-328.50371,0.00035616,31]
[399065403,1766095852566,-328.50371,0.00035616,31]
[399065404,1766095852576,-328.50371,0.00035616,31]
[399065405,1766095852585,-328.50371,0.00035616,31]
[399065406,1766095852594,-156.624377,0.00035616,31]
[399065407,1766095852604,-328.50371,0.00035616,31]
[399065408,1766095852613,-328.50371,0.00035616,31]
[399065409,1766095852623,-328.50371,0.00035616,31]
[399065410,1766095852632,-328.50371,0.00035616,31]
[399065411,1766095852643,-328.50371,0.00035616,31]
[399065412,1766095852653,-328.50371,0.00035616,31]
[399065413,1766095852662,-328.50371,0.00035616,31]
[399065414,1766095852671,-154.666529,0.00035616,31]
[399065415,1766095852680,-151.0,0.00035616,31]
[399065416,1766095852689,-151.0,0.00035616,31]
[399065417,1766095852699,-151.0,0.00035616,31]
[399065418,1766095852708,-151.0,0.00035616,31]
[399065419,1766095852718,-190.424639,0.00035616,31]
[399065420,1766095852728,-213.995871,0.00035616,31]
[399065421,1766095852737,-151.0,0.00035616,31]
[399065422,1766095852746,-243.84413,0.00035616,31]
[399065423,1766095852757,-151.0,0.00035616,31]
[399065424,1766095852766,-151.0,0.00035616,31]
[399065425,1766095852776,-151.0,0.00035616,31]
[399065426,1766095852785,-151.0,0.00035616,31]
[399065427,1766095852796,-151.0,0.00035616,31]
[399065428,1766095852805,-147.08502712,0.00035616,31]
[399065429,1766095852822,-3.91497288,0.00035616,31]
[399065430,1766095852831,-151.0,0.00035616,31]
[399065431,1766095852840,-151.0,0.00035616,31]
[399065432,1766095852850,-151.0,0.00035616,31]
[399065433,1766095852860,-151.0,0.00035616,31]
[399065434,1766095852870,-151.0,0.00035616,31]
[399065435,1766095852880,-151.0,0.00035616,31]
[399065436,1766095852891,-151.0,0.00035616,31]
[399065437,1766095852901,-151.0,0.00035616,31]
[399065438,1766095852911,-151.0,0.00035616,31]
[399065439,1766095852925,-151.0,0.00035616,31]
[399065440,1766095852941,-151.0,0.00035616,31]
[399065441,1766095852951,-153.090963,0.00035616,31]
[399065442,1766095852962,-151.0,0.00035616,31]
[399065443,1766095852972,-151.0,0.00035616,31]
[399065444,1766095852982,-151.0,0.00035616,31]
[399065445,1766095852993,-151.0,0.00035616,31]
[399065446,1766095853003,-151.0,0.00035616,31]
[399065447,1766095853013,-151.0,0.00035616,31]
[399065448,1766095853023,-151.0,0.00035616,31]
[399065449,1766095853033,-151.0,0.00035616,31]
[399065450,1766095853043,-151.0,0.00035616,31]
[399065451,1766095853054,-151.0,0.00035616,31]
[399065452,1766095853064,-151.0,0.00035616,31]
[399065453,1766095853074,-151.0,0.00035616,31]
[399065454,1766095853084,-294.224118,0.00035616,31]
[399065455,1766095853094,-151.0,0.00035616,31]
[399065456,1766095853104,-151.0,0.00035616,31]
[399065457,1766095853113,-151.0,0.00035616,31]
[399065458,1766095853123,-151.0,0.00035616,31]
[399065459,1766095853133,-312.54409,0.00035616,31]
[399065460,1766095853146,-151.0,0.00035616,31]
[399065461,1766095853158,-312.54409,0.00035616,31]
[399065462,1766095853170,-312.54409,0.00035616,31]
[399065463,1766095853181,-151.0,0.00035616,31]
[399065464,1766095853194,-151.0,0.00035616,31]
[399065465,1766095853212,-151.0,0.00035616,31]
[399065466,1766095853227,-312.54409,0.00035616,31]
[399065467,1766095853718,-312.54409,0.00035616,31]
[399065468,1766095853729,-312.54409,0.00035616,31]
[399065469,1766095853751,-312.54409,0.00035616,31]
[399065470,1766095853765,-312.54409,0.00035616,31]
[399065471,1766095853775,-312.54409,0.00035616,31]
[399065472,1766095853785,-312.54409,0.00035616,31]
[399065473,1766095853795,-312.54409,0.00035616,31]
[399065474,1766095853805,-312.54409,0.00035616,31]
[399065475,1766095853815,-934.10767,0.00035616,31]
[399065476,1766095853825,-934.10767,0.00035616,31]
[399065477,1766095853835,-934.10767,0.00035616,31]
[399065478,1766095853848,-934.10767,0.00035616,31]
[399065479,1766095853857,-934.10767,0.00035616,31]
[399065480,1766095853867,-934.10767,0.00035616,31]
[399065481,1766095853877,-934.10767,0.00035616,31]
[399065482,1766095853888,-934.10767,0.00035616,31]
[399065483,1766095853903,-934.10767,0.00035616,31]
[399065484,1766095853922,-934.10767,0.00035616,31]
[399065485,1766095853942,-934.10767,0.00035616,31]
[399065486,1766095853956,-934.10767,0.00035616,31]
[399065487,1766095853966,-160.291302,0.00035616,31]
[399065488,1766095853977,-151.0,0.00035616,31]
[399065489,1766095853988,-154.751163,0.00035616,31]
[399065490,1766095853998,-151.0,0.00035616,31]
[399065491,1766095854025,-152.949205,0.00035616,31]
[399065492,1766095854037,-818.431842,0.00035616,31]
[399065493,1766095854048,-818.431842,0.00035616,31]
[399065494,1766095854059,-818.431842,0.00035616,31]
[399065495,1766095854070,-151.0,0.00035616,31]
[399065496,1766095854081,-818.431842,0.00035616,31]
[399065497,1766095854092,-151.0,0.00035616,31]
[399065498,1766095854103,-818.431842,0.00035616,31]
[399065499,1766095854113,-818.431842,0.00035616,31]
[399065500,1766095854124,-818.431842,0.00035616,31]
[399065501,1766095854135,-818.431842,0.00035616,31]
[399065502,1766095854147,-818.431842,0.00035616,31]
[399065503,1766095854158,-202.847655,0.00035616,31]
[399065504,1766095854170,-818.431842,0.00035616,31]
[399065505,1766095854181,-151.0,0.00035616,31]
[399065506,1766095854192,-818.431842,0.00035616,31]
[399065507,1766095854203,-818.431842,0.00035616,31]
[399065508,1766095854213,-194.625844,0.00035616,31]
[399065509,1766095854224,-194.625844,0.00035616,31]
[399065510,1766095854234,-156.755094,0.00035616,31]
[399065511,1766095854245,-194.625844,0.00035616,31]
[399065512,1766095854255,-151.0,0.00035616,31]
[399065513,1766095854266,-194.625844,0.00035616,31]
[399065514,1766095854276,-151.0,0.00035616,31]
[399065515,1766095854287,-151.0,0.00035616,31]
[399065516,1766095854297,-194.625844,0.00035616,31]
[399065517,1766095854308,-194.625844,0.00035616,31]
[399065518,1766095854318,-151.0,0.00035616,31]
[399065519,1766095854328,-194.625844,0.00035616,31]
[399065520,1766095854338,-151.0,0.00035616,31]
[399065521,1766095854348,-194.625844,0.00035616,31]
[399065522,1766095854365,-151.0,0.00035616,31]
[399065523,1766095854377,-194.625844,0.00035616,31]
[399065524,1766095854388,-151.0,0.00035616,31]
[399065525,1766095854399,-151.0,0.00035616,31]
[399065526,1766095854410,-194.625844,0.00035616,31]
[399065527,1766095854421,-151.0,0.00035616,31]
[399065528,1766095854432,-194.625844,0.00035616,31]
[399065529,1766095854443,-194.625844,0.00035616,31]
[399065530,1766095854454,-151.0,0.00035616,31]
[399065531,1766095854464,-151.0,0.00035616,31]
[399065532,1766095854475,-64.82179565,0.00035616,31]
[399065533,1766095854516,-151.0,0.00019949,2]
[399065534,1766095854528,-86.17820435,0.00035616,31]
[399065535,1766095854539,-85.83385163,0.00035616,15]
[399065536,1766095854552,-65.16614837,0.00035616,15]
[399065537,1766095854564,-151.0,0.00035616,15]
[399065538,1766095854575,-151.0,0.00035616,15]
[399065539,1766095854586,-289.240299,0.00035616,15]
[399065540,1766095854597,-153.790977,0.00035616,31]
[399065541,1766095854607,-162.807791,0.00035616,31]
[399065542,1766095854618,-151.0,0.00035616,31]
[399065543,1766095854629,-151.0,0.00035616,31]
[399065544,1766095854642,-151.0,0.00035616,31]
[399065545,1766095854654,-151.0,0.00035616,31]
[399065546,1766095854665,-151.0,0.00035616,31]
[399065547,1766095854676,-151.0,0.00035616,31]
[399065548,1766095854687,-326.979355,0.00035616,31]
[399065549,1766095854698,-326.979355,0.00035616,31]
[399065550,1766095854716,-326.979355,0.00035616,31]
[399065551,1766095854728,-151.0,0.00035616,31]
[399065552,1766095854739,-326.979355,0.00035616,31]
[399065553,1766095854751,-151.0,0.00035616,31]
[399065554,1766095854762,-151.0,0.00035616,31]
[399065555,1766095854773,-151.0,0.00035616,31]
[399065556,1766095854784,-326.979355,0.00035616,31]
[399065557,1766095854796,-151.0,0.00035616,31]
[399065558,1766095854807,-326.979355,0.00035616,31]
[399065559,1766095854818,-151.0,0.00035616,31]
[399065560,1766095854830,-151.0,0.00035616,31]
[399065561,1766095854842,-326.979355,0.00035616,31]
[399065562,1766095854853,-326.979355,0.00035616,31]
[399065563,1766095854864,-151.0,0.00035616,31]
[399065564,1766095854875,-239.873844,0.00035616,31]
[399065565,1766095854888,-326.979355,0.00035616,31]
[399065566,1766095854899,-105.39595294,0.00035616,31]
[399065567,1766095854914,-221.58340206,0.00035616,31]
[399065568,1766095854929,-326.979355,0.00035616,31]
[399065569,1766095854941,-326.979355,0.00035616,31]
[399065570,1766095854952,-326.979355,0.00035616,31]
[399065571,1766095854963,-326.979355,0.00035616,31]
[399065572,1766095854974,-326.979355,0.00035616,31]
[399065573,1766095854985,-326.979355,0.00035616,31]
[399065574,1766095854997,-274.269961,0.00035616,31]
[399065575,1766095855009,-1331.686323,0.00035616,31]
[399065576,1766095855020,-40.36055941,0.00035616,31]
[399065577,1766095858386,-1.7e-07,0.00016983,2]
[399065578,1766095858409,-543.94465244,0.00016983,2]
[399065579,1766095858422,-153.0,0.00017,2]
[399065580,1766095858432,-151.0,0.00017,2]
[399065581,1766095858442,-151.0,0.00019178,2]
[399065582,1766095858452,-151.0,0.00019178,2]
[399065583,1766095858462,-151.0,0.00019949,2]
[399065584,1766095858473,-151.0,0.000248,7]
[399065585,1766095858486,-120.34435159,0.00035616,31]
[399065586,1766095858496,-1331.686323,0.00035616,31]
[399065587,1766095858506,-160.704911,0.00035616,31]
[399065588,1766095858515,-1331.686323,0.00035616,31]
[399065589,1766095858525,-160.704911,0.00035616,31]
[399065590,1766095858535,-1331.686323,0.00035616,31]
[399065591,1766095858544,-117.51455575,0.00035616,31]
[399065592,1766095858557,-43.19035525,0.00035616,31]
[399065593,1766095858567,-159.860662,0.00035616,31]
[399065594,1766095858577,-1331.686323,0.00035616,31]
[399065595,1766095858587,-160.704911,0.00035616,31]
[399065596,1766095858597,-1216.74107328,0.00035616,31]